Workbook

Sheet Sheet1
C1: Charges for Naadi Predictions for Various Currencies
C2: (For Online Predictions)
C4: ** Note : Other Specialised Naadi Also Available on Special Rates
B6: Sn | C6: Country & Currency | D6: Dollar Value | E6: Entry Fee | F6: Thulya Nadi | G6: Maha Sukshma Nadi
B8: 1 | C8: Indian Rupees (Rs.) | E8: 500.00 | F8: 3050.00 | G8: 6050.00
B9: =SUM(B8+1) -> 2 | C9: United States of America US$ | E9: 12.00 | F9: 55.00 | G9: 110.00
B10: =SUM(B9+1) -> 3 | C10: Afghan Afghani (AFN) | D10: 69.22 | E10: =SUM(D10*12) -> 830.64 | F10: =SUM(D10*55) -> 3807.10 | G10: =SUM(D10*110) -> 7614.20
B11: 4 | C11: Albanian Lek (ALL) | D11: 121.97 | E11: 1463.64 | F11: 6708.35 | G11: 13416.70
B12: 5 | C12: Algerian Dinar (DZD) | D12: 109.83 | E12: 1317.96 | F12: 6040.65 | G12: 12081.30
B13: 6 | C13: Angolan Kwanza (AOA) | D13: 166.29 | E13: 1995.48 | F13: 9145.95 | G13: 18291.90
B14: 7 | C14: Anoncoin (ANC) | D14: 5.48 | E14: 65.76 | F14: 301.40 | G14: 602.80
B15: 8 | C15: Aphroditecoin (APH) | D15: 16047.41 | E15: 192568.92 | F15: 882607.55 | G15: 1765215.10
B16: 9 | C16: Argentine Peso (ARS) | D16: 13.98 | E16: 167.76 | F16: 768.90 | G16: 1537.80
B17: 10 | C17: Argentum (ARG) | D17: 834.49 | E17: 10013.88 | F17: 45896.95 | G17: 91793.90
B18: 11 | C18: Armenian Dram (AMD) | D18: 475.16 | E18: 5701.92 | F18: 26133.80 | G18: 52267.60
B19: 12 | C19: Aruban Florin (AWG) | D19: 1.79 | E19: 21.48 | F19: 98.45 | G19: 196.90
B20: 13 | C20: Auroracoin (AUR) | D20: 5.67 | E20: 68.04 | F20: 311.85 | G20: 623.70
B21: 14 | C21: Australian Dollar (AUD) | D21: 1.34 | E21: 16.08 | F21: 73.70 | G21: 147.40
B22: 15 | C22: Azerbaijani Manat (AZN) | D22: 1.52 | E22: 18.24 | F22: 83.60 | G22: 167.20
B23: 16 | C23: Bahamian Dollar (BSD) | D23: 1 | E23: 12.00 | F23: 55.00 | G23: 110.00
B24: 17 | C24: Bahraini Dinar (BHD) | D24: 0.38 | E24: 4.56 | F24: 20.90 | G24: 41.80
B25: 18 | C25: Bangladeshi Taka (BDT) | D25: 78.22 | E25: 938.64 | F25: 4302.10 | G25: 8604.20
B26: 19 | C26: Barbados Dollar (BBD) | D26: 2 | E26: 24.00 | F26: 110.00 | G26: 220.00
B27: 20 | C27: BBQCoin (BQC) | D27: 991.36 | E27: 11896.32 | F27: 54524.80 | G27: 109049.60
B28: 21 | C28: Belarusian Ruble (BYR) | D28: 19806.06 | E28: 237672.72 | F28: 1089333.30 | G28: 2178666.60
B29: 22 | C29: Belize Dollar (BZD) | D29: 2.01 | E29: 24.12 | F29: 110.55 | G29: 221.10
B30: 23 | C30: Bermuda Dollar (BMD) | D30: 1 | E30: 12.00 | F30: 55.00 | G30: 110.00
B31: 24 | C31: BetaCoin (BET) | D31: 6418.96 | E31: 77027.52 | F31: 353042.80 | G31: 706085.60
B32: 25 | C32: Bhutanese Ngultrum (BTN) | D32: 67.7 | E32: 812.40 | F32: 3723.50 | G32: 7447.00
B33: 26 | C33: Billioncoin (BIL) | D33: 15040.71 | E33: 180488.52 | F33: 827239.05 | G33: 1654478.10
B34: 27 | C34: BitBar (BTB) | D34: 2.46 | E34: 29.52 | F34: 135.30 | G34: 270.60
B35: 28 | C35: Bitleu (BTL) | D35: 351090.93 | E35: 4213091.16 | F35: 19310001.15 | G35: 38620002.30
B36: 29 | C36: Bitmonero (XMR) | D36: 0.68 | E36: 8.16 | F36: 37.40 | G36: 74.80
B37: 30 | C37: BlackCoin (BLC) | D37: 1004.39 | E37: 12052.68 | F37: 55241.45 | G37: 110482.90
B38: 31 | C38: Bolivian Boliviano (BOB) | D38: 6.95 | E38: 83.40 | F38: 382.25 | G38: 764.50
B39: 32 | C39: Bosnia-Herzegovina Convertible Mark (BAM) | D39: 1.71 | E39: 20.52 | F39: 94.05 | G39: 188.10
B40: 33 | C40: Botswana Pula (BWP) | D40: 10.78 | E40: 129.36 | F40: 592.90 | G40: 1185.80
B41: 34 | C41: Brazilian Real (BRL) | D41: 3.39 | E41: 40.68 | F41: 186.45 | G41: 372.90
B42: 35 | C42: Brunei Dollar (BND) | D42: 1.34 | E42: 16.08 | F42: 73.70 | G42: 147.40
B43: 36 | C43: Bulgarian Lev (BGN) | D43: 1.74 | E43: 20.88 | F43: 95.70 | G43: 191.40
B44: 37 | C44: Burundian Franc (BIF) | D44: 1653.21 | E44: 19838.52 | F44: 90926.55 | G44: 181853.10
B45: 38 | C45: Bytecoin (BCN) (BCN) | D45: 37483.6 | E45: 449803.20 | F45: 2061598.00 | G45: 4123196.00
B46: 39 | C46: Bytecoin (BTE) | D46: 100.5 | E46: 1206.00 | F46: 5527.50 | G46: 11055.00
B47: 40 | C47: Cambodian Riel (KHR) | D47: 4086.15 | E47: 49033.80 | F47: 224738.25 | G47: 449476.50
B48: 41 | C48: Canadian Dollar (CAD) | D48: 1.28 | E48: 15.36 | F48: 70.40 | G48: 140.80
B49: 42 | C49: Cape Verde Escudo (CVE) | D49: 98.2 | E49: 1178.40 | F49: 5401.00 | G49: 10802.00
B50: 43 | C50: CasinoCoin (CSC) | D50: 88.63 | E50: 1063.56 | F50: 4874.65 | G50: 9749.30
B51: 44 | C51: Cayman Islands Dollar (KYD) | D51: 0.82 | E51: 9.84 | F51: 45.10 | G51: 90.20
B52: 45 | C52: Central African CFA (XAF) | D52: 581.37 | E52: 6976.44 | F52: 31975.35 | G52: 63950.70
B53: 46 | C53: Chilean Peso (CLP) | D53: 676.03 | E53: 8112.36 | F53: 37181.65 | G53: 74363.30
B54: 47 | C54: Chilean Unidad de Fomento (CLF) | D54: 0.03 | E54: 0.36 | F54: 1.65 | G54: 3.30
B55: 48 | C55: Chinese Offshore Yuan (CNH) | D55: 6.56 | E55: 78.72 | F55: 360.80 | G55: 721.60
B56: 49 | C56: Chinese Yuan (CNY) | D56: 6.58 | E56: 78.96 | F56: 361.90 | G56: 723.80
B57: 50 | C57: Cinni (CIN) | D57: 1829.24 | E57: 21950.88 | F57: 100608.20 | G57: 201216.40
B58: 51 | C58: Colombian Peso (COP) | D58: 2976.29 | E58: 35715.48 | F58: 163695.95 | G58: 327391.90
B59: 52 | C59: Comorian Franc (KMF) | D59: 437.2 | E59: 5246.40 | F59: 24046.00 | G59: 48092.00
B60: 53 | C60: Copperlark (CLR) | D60: 2824.34 | E60: 33892.08 | F60: 155338.70 | G60: 310677.40
B61: 54 | C61: Costa Rican Colon (CRC) | D61: 545.66 | E61: 6547.92 | F61: 30011.30 | G61: 60022.60
B62: 55 | C62: Counterparty (ZCP) | D62: 0.67 | E62: 8.04 | F62: 36.85 | G62: 73.70
B63: 56 | C63: CraftCoin (XCC) | D63: 122.71 | E63: 1472.52 | F63: 6749.05 | G63: 13498.10
B64: 57 | C64: Croatian Kuna (HRK) | D64: 6.69 | E64: 80.28 | F64: 367.95 | G64: 735.90
B65: 58 | C65: CryptogenicBullion (CGB) | D65: 14.72 | E65: 176.64 | F65: 809.60 | G65: 1619.20
B66: 59 | C66: Cuban Convertible Peso (CUC) | D66: 1 | E66: 12.00 | F66: 55.00 | G66: 110.00
B67: 60 | C67: Cypriot Pound (CYP) | D67: 0.51 | E67: 6.12 | F67: 28.05 | G67: 56.10
B68: 61 | C68: Czech Koruna (CZK) | D68: 23.98 | E68: 287.76 | F68: 1318.90 | G68: 2637.80
B69: 62 | C69: Danish Krone (DKK) | D69: 6.59 | E69: 79.08 | F69: 362.45 | G69: 724.90
B70: 63 | C70: DarkCoin (DRK) | D70: 0.19 | E70: 2.28 | F70: 10.45 | G70: 20.90
B71: 64 | C71: Datacoin (DTC) | D71: 416.73 | E71: 5000.76 | F71: 22920.15 | G71: 45840.30
B72: 65 | C72: Deutsche eMark (DEE) | D72: 588.87 | E72: 7066.44 | F72: 32387.85 | G72: 64775.70
B73: 66 | C73: Devcoin (DVC) | D73: 130729.79 | E73: 1568757.48 | F73: 7190138.45 | G73: 14380276.90
B74: =SUM(B73+1) -> 67 | C74: DiamondCoins (DMD) | D74: 3.29 | E74: =SUM(D74*12) -> 39.48 | F74: =SUM(D74*55) -> 180.95 | G74: =SUM(D74*110) -> 361.90
B75: 68 | C75: Digitalcoin (DGC) | D75: 71.22 | E75: 854.64 | F75: 3917.10 | G75: 7834.20
B76: 69 | C76: Djiboutian Franc (DJF) | D76: 178.17 | E76: 2138.04 | F76: 9799.35 | G76: 19598.70
B77: 70 | C77: DogeCoin (XDG) | D77: 3943.98 | E77: 47327.76 | F77: 216918.90 | G77: 433837.80
B78: 71 | C78: Dominican Peso (DOP) | D78: 46.33 | E78: 555.96 | F78: 2548.15 | G78: 5096.30
B79: 72 | C79: East Caribbean Dollar (XCD) | D79: 2.71 | E79: 32.52 | F79: 149.05 | G79: 298.10
B80: 73 | C80: Egyptian Pound (EGP) | D80: 8.89 | E80: 106.68 | F80: 488.95 | G80: 977.90
B81: 74 | C81: Elacoin (ELC) | D81: 8.94 | E81: 107.28 | F81: 491.70 | G81: 983.40
B82: 75 | C82: Electronic Gulden (EFL) | D82: 138.82 | E82: 1665.84 | F82: 7635.10 | G82: 15270.20
B83: 76 | C83: Eritrean Nakfa (ERN) | D83: 15.69 | E83: 188.28 | F83: 862.95 | G83: 1725.90
B84: 77 | C84: Ethiopian Birr (ETB) | D84: 21.94 | E84: 263.28 | F84: 1206.70 | G84: 2413.40
B85: 78 | C85: Euro (EUR) | D85: 0.89 | E85: 10.68 | F85: 48.95 | G85: 97.90
B86: 79 | C86: EZCoin (EZC) | D86: 112.6 | E86: 1351.20 | F86: 6193.00 | G86: 12386.00
B87: 80 | C87: Faircoin (FAC) | D87: 314 | E87: 3768.00 | F87: 17270.00 | G87: 34540.00
B88: 81 | C88: Falkland Islands Pound (FKP) | D88: 0.68 | E88: 8.16 | F88: 37.40 | G88: 74.80
B89: 82 | C89: Fastcoin (FST) | D89: 17434.82 | E89: 209217.84 | F89: 958915.10 | G89: 1917830.20
B90: 83 | C90: Feathercoin (FTC) | D90: 32.99 | E90: 395.88 | F90: 1814.45 | G90: 3628.90
B91: 84 | C91: Fiji Dollar (FJD) | D91: 2.07 | E91: 24.84 | F91: 113.85 | G91: 227.70
B92: 85 | C92: FlorinCoin (FLO) | D92: 489.33 | E92: 5871.96 | F92: 26913.15 | G92: 53826.30
B93: 86 | C93: FlutterCoin (FLT) | D93: 5316.75 | E93: 63801.00 | F93: 292421.25 | G93: 584842.50
B94: 87 | C94: Franc Congolais (CDF) | D94: 951.21 | E94: 11414.52 | F94: 52316.55 | G94: 104633.10
B95: 88 | C95: Franko (FRK) | D95: 74.62 | E95: 895.44 | F95: 4104.10 | G95: 8208.20
B96: 89 | C96: Freicoin (FRC) | D96: 1093.01 | E96: 13116.12 | F96: 60115.55 | G96: 120231.10
B97: 90 | C97: French Pacific Franc (XPF) | D97: 105.76 | E97: 1269.12 | F97: 5816.80 | G97: 11633.60
B98: 91 | C98: Gambian Dalasi (GMD) | D98: 42.9 | E98: 514.80 | F98: 2359.50 | G98: 4719.00
B99: 92 | C99: GameCoin (GME) | D99: 530.89 | E99: 6370.68 | F99: 29198.95 | G99: 58397.90
B100: 93 | C100: Georgian Lari (GEL) | D100: 2.17 | E100: 26.04 | F100: 119.35 | G100: 238.70
B101: 94 | C101: Ghanaian Cedi (GHS) | D101: 3.84 | E101: 46.08 | F101: 211.20 | G101: 422.40
B102: 95 | C102: Gibraltar Pound (GIP) | D102: 0.68 | E102: 8.16 | F102: 37.40 | G102: 74.80
B103: 96 | C103: GlobalCoin (GLC) | D103: 8954.27 | E103: 107451.24 | F103: 492484.85 | G103: 984969.70
B104: 97 | C104: GoldCoin (GLD) | D104: 65.17 | E104: 782.04 | F104: 3584.35 | G104: 7168.70
B105: 98 | C105: GrandCoin (GDC) | D105: 35304.3 | E105: 423651.60 | F105: 1941736.50 | G105: 3883473.00
B106: 99 | C106: Guatemalan Quetzal (GTQ) | D106: 7.64 | E106: 91.68 | F106: 420.20 | G106: 840.40
B107: 100 | C107: Guinean Franc (GNF) | D107: 8380.84 | E107: 100570.08 | F107: 460946.20 | G107: 921892.40
B108: 101 | C108: Guyanese Dollar (GYD) | D108: 207.55 | E108: 2490.60 | F108: 11415.25 | G108: 22830.50
B109: 102 | C109: Haitian Gourde (HTG) | D109: 63.44 | E109: 761.28 | F109: 3489.20 | G109: 6978.40
B110: 103 | C110: HoboNickel (HBN) | D110: 1373.71 | E110: 16484.52 | F110: 75554.05 | G110: 151108.10
B111: 104 | C111: Honduran Lempira (HNL) | D111: 22.78 | E111: 273.36 | F111: 1252.90 | G111: 2505.80
B112: 105 | C112: Hong Kong Dollar (HKD) | D112: 7.77 | E112: 93.24 | F112: 427.35 | G112: 854.70
B113: 106 | C113: Hungarian Forint (HUF) | D113: 279.16 | E113: 3349.92 | F113: 15353.80 | G113: 30707.60
B114: 107 | C114: Icelandic Krona (ISK) | D114: 122.53 | E114: 1470.36 | F114: 6739.15 | G114: 13478.30
B115: 108 | C115: ICoin (XIC) | D115: 73 | E115: 876.00 | F115: 4015.00 | G115: 8030.00
B116: 109 | C116: Indonesian Rupiah (IDR) | D116: 13297.99 | E116: 159575.88 | F116: 731389.45 | G116: 1462778.90
B117: 110 | C117: Infinitecoin (IFC) | D117: 121273.73 | E117: 1455284.76 | F117: 6670055.15 | G117: 13340110.30
B118: 111 | C118: Iranian Rial (IRR) | D118: 30590.07 | E118: 367080.84 | F118: 1682453.85 | G118: 3364907.70
B119: 112 | C119: Iraqi Dinar (IQD) | D119: 1195.74 | E119: 14348.88 | F119: 65765.70 | G119: 131531.40
B120: 113 | C120: Isracoin (ISR) | D120: 15690.8 | E120: 188289.60 | F120: 862994.00 | G120: 1725988.00
B121: 114 | C121: Israeli New Shekel (ILS) | D121: 3.85 | E121: 46.20 | F121: 211.75 | G121: 423.50
B122: 115 | C122: Ixcoin (IXC) | D122: 23.54 | E122: 282.48 | F122: 1294.70 | G122: 2589.40
B123: 116 | C123: Jamaican Dollar (JMD) | D123: 125.79 | E123: 1509.48 | F123: 6918.45 | G123: 13836.90
B124: 117 | C124: Japanese Yen (JPY) | D124: 104.5 | E124: 1254.00 | F124: 5747.50 | G124: 11495.00
B125: 118 | C125: Jersey Pound (JEP) | D125: 0.68 | E125: 8.16 | F125: 37.40 | G125: 74.80
B126: 119 | C126: Jordanian Dinar (JOD) | D126: 0.71 | E126: 8.52 | F126: 39.05 | G126: 78.10
B127: 120 | C127: Joulecoin (XJO) | D127: 7432.48 | E127: 89189.76 | F127: 408786.40 | G127: 817572.80
B128: 121 | C128: Junkcoin (JKC) | D128: 10086.94 | E128: 121043.28 | F128: 554781.70 | G128: 1109563.40
B129: 122 | C129: KarpelesCoin (KAR) | D129: 45710.23 | E129: 548522.76 | F129: 2514062.65 | G129: 5028125.30
B130: 123 | C130: Kazakhstani Tenge (KZT) | D130: 336.73 | E130: 4040.76 | F130: 18520.15 | G130: 37040.30
B131: 124 | C131: Kenyan Shilling (KES) | D131: 101.38 | E131: 1216.56 | F131: 5575.90 | G131: 11151.80
B132: 125 | C132: Kuwaiti Dinar (KWD) | D132: 0.3 | E132: 3.60 | F132: 16.50 | G132: 33.00
B133: 126 | C133: Kyrgyzstani Som (KGS) | D133: 67.5 | E133: 810.00 | F133: 3712.50 | G133: 7425.00
B134: 127 | C134: Lao Kip (LAK) | D134: 8124.34 | E134: 97492.08 | F134: 446838.70 | G134: 893677.40
B135: 128 | C135: Lebanese Pound (LBP) | D135: 1516.51 | E135: 18198.12 | F135: 83408.05 | G135: 166816.10
B136: 129 | C136: Lesotho Loti (LSL) | D136: 14.76 | E136: 177.12 | F136: 811.80 | G136: 1623.60
B137: 130 | C137: Liberian Dollar (LRD) | D137: 84.63 | E137: 1015.56 | F137: 4654.65 | G137: 9309.30
B138: =SUM(B137+1) -> 131 | C138: Libyan Dinar (LYD) | D138: 1.36 | E138: =SUM(D138*12) -> 16.32 | F138: =SUM(D138*55) -> 74.80 | G138: =SUM(D138*110) -> 149.60
B139: 132 | C139: Litecoin (LTC) | D139: 0.27 | E139: 3.24 | F139: 14.85 | G139: 29.70
B140: 133 | C140: Lithuanian Litas (LTL) | D140: 3.07 | E140: 36.84 | F140: 168.85 | G140: 337.70
B141: 134 | C141: Luckycoin (LKY) | D141: 353.04 | E141: 4236.48 | F141: 19417.20 | G141: 38834.40
B142: 135 | C142: Macau Pataca (MOP) | D142: 8 | E142: 96.00 | F142: 440.00 | G142: 880.00
B143: 136 | C143: Macedonia Denar (MKD) | D143: 54.74 | E143: 656.88 | F143: 3010.70 | G143: 6021.40
B144: 137 | C144: MaidSafeCoin (XMS) | D144: 711.44 | E144: 8537.28 | F144: 39129.20 | G144: 78258.40
B145: 138 | C145: Malagasy Ariary (MGA) | D145: 3258.36 | E145: 39100.32 | F145: 179209.80 | G145: 358419.60
B146: 139 | C146: Malawian Kwacha (MWK) | D146: 711.14 | E146: 8533.68 | F146: 39112.70 | G146: 78225.40
B147: 140 | C147: Malaysian Ringgit (MYR) | D147: 4.06 | E147: 48.72 | F147: 223.30 | G147: 446.60
B148: 141 | C148: Maldives Rufiyaa (MVR) | D148: 15.25 | E148: 183.00 | F148: 838.75 | G148: 1677.50
B149: 142 | C149: Marinecoin (MTC) | D149: 11.03 | E149: 132.36 | F149: 606.65 | G149: 1213.30
B150: 143 | C150: Mastercoin (MSC) | D150: 0.52 | E150: 6.24 | F150: 28.60 | G150: 57.20
B151: 144 | C151: Mauritania Ouguiya (MRO) | D151: 357.51 | E151: 4290.12 | F151: 19663.05 | G151: 39326.10
B152: 145 | C152: Mauritian Rupee (MUR) | D152: 35.38 | E152: 424.56 | F152: 1945.90 | G152: 3891.80
B153: 146 | C153: MaxCoin (MAX) | D153: 240.73 | E153: 2888.76 | F153: 13240.15 | G153: 26480.30
B154: 147 | C154: Megacoin (MEC) | D154: 53.48 | E154: 641.76 | F154: 2941.40 | G154: 5882.80
B155: 148 | C155: Mexican Peso (MXN) | D155: 18.53 | E155: 222.36 | F155: 1019.15 | G155: 2038.30
B156: 149 | C156: Mexican Unidad De Inversion (MXV) | D156: 3.42 | E156: 41.04 | F156: 188.10 | G156: 376.20
B157: 150 | C157: Mincoin (MNC) | D157: 3683.13 | E157: 44197.56 | F157: 202572.15 | G157: 405144.30
B158: 151 | C158: Mintcoin (XMT) | D158: 14588.55 | E158: 175062.60 | F158: 802370.25 | G158: 1604740.50
B159: 152 | C159: Moldovan Leu (MDL) | D159: 19.78 | E159: 237.36 | F159: 1087.90 | G159: 2175.80
B160: 153 | C160: Mongolian Tugrik (MNT) | D160: 1944.07 | E160: 23328.84 | F160: 106923.85 | G160: 213847.70
B161: 154 | C161: Moroccan Dirham (MAD) | D161: 9.72 | E161: 116.64 | F161: 534.60 | G161: 1069.20
B162: 155 | C162: Myanmar Kyat (MMK) | D162: 1185.11 | E162: 14221.32 | F162: 65181.05 | G162: 130362.10
B163: 156 | C163: Namecoin (NMC) | D163: 2.73 | E163: 32.76 | F163: 150.15 | G163: 300.30
B164: 157 | C164: Namibian Dollar (NAD) | D164: 14.76 | E164: 177.12 | F164: 811.80 | G164: 1623.60
B165: 158 | C165: Nas (NAS) | D165: 23536.2 | E165: 282434.40 | F165: 1294491.00 | G165: 2588982.00
B166: 159 | C166: Nepalese Rupee (NPR) | D166: 108.02 | E166: 1296.24 | F166: 5941.10 | G166: 11882.20
B167: 160 | C167: NetCoin (NET) | D167: 6628.61 | E167: 79543.32 | F167: 364573.55 | G167: 729147.10
B168: 161 | C168: Netherlands Antillean Guilder (ANG) | D168: 1.79 | E168: 21.48 | F168: 98.45 | G168: 196.90
B169: 162 | C169: Neutrino (NTR) | D169: 11768.1 | E169: 141217.20 | F169: 647245.50 | G169: 1294491.00
B170: 163 | C170: New Mozambican Metical (MZN) | D170: 60.71 | E170: 728.52 | F170: 3339.05 | G170: 6678.10
B171: 164 | C171: New Taiwan Dollar (TWD) | D171: 32.26 | E171: 387.12 | F171: 1774.30 | G171: 3548.60
B172: 165 | C172: New Zealand Dollar (NZD) | D172: 1.4 | E172: 16.80 | F172: 77.00 | G172: 154.00
B173: 166 | C173: Nicaraguan Cordoba Oro (NIO) | D173: 28.77 | E173: 345.24 | F173: 1582.35 | G173: 3164.70
B174: 167 | C174: Nigerian Naira (NGN) | D174: 282.43 | E174: 3389.16 | F174: 15533.65 | G174: 31067.30
B175: 168 | C175: Noirbits (NRB) | D175: 5884.05 | E175: 70608.60 | F175: 323622.75 | G175: 647245.50
B176: 169 | C176: NoodlyAppendageCoin (NDL) | D176: 340282.41 | E176: 4083388.92 | F176: 18715532.55 | G176: 37431065.10
B177: 170 | C177: North Korean Won (KPW) | D177: 884.55 | E177: 10614.60 | F177: 48650.25 | G177: 97300.50
B178: 171 | C178: Norwegian Krone (NOK) | D178: 8.29 | E178: 99.48 | F178: 455.95 | G178: 911.90
B179: 172 | C179: Novacoin (NVC) | D179: 1.39 | E179: 16.68 | F179: 76.45 | G179: 152.90
B180: 173 | C180: Nxt (NXT) | D180: 97.35 | E180: 1168.20 | F180: 5354.25 | G180: 10708.50
B181: 174 | C181: Omani Rial (OMR) | D181: 0.38 | E181: 4.56 | F181: 20.90 | G181: 41.80
B182: 175 | C182: Orbitcoin (ORB) | D182: 24.47 | E182: 293.64 | F182: 1345.85 | G182: 2691.70
B183: 176 | C183: Ounces of Aluminum (XAL) | D183: 22.9 | E183: 274.80 | F183: 1259.50 | G183: 2519.00
B184: 177 | C184: Ounces of Copper (XCP) | D184: 7.61 | E184: 91.32 | F184: 418.55 | G184: 837.10
B185: 178 | C185: Pakistan Rupee (PKR) | D185: 104.75 | E185: 1257.00 | F185: 5761.25 | G185: 11522.50
B186: 179 | C186: Panamanian Balboa (PAB) | D186: 1 | E186: 12.00 | F186: 55.00 | G186: 110.00
B187: 180 | C187: Papua New Guinea Kina (PGK) | D187: 3.17 | E187: 38.04 | F187: 174.35 | G187: 348.70
B188: 181 | C188: Paraguay Guarani (PYG) | D188: 5689.65 | E188: 68275.80 | F188: 312930.75 | G188: 625861.50
B189: 182 | C189: Peercoin (PPC) | D189: 2.74 | E189: 32.88 | F189: 150.70 | G189: 301.40
B190: 183 | C190: Peruvian Nuevo Sol (PEN) | D190: 3.29 | E190: 39.48 | F190: 180.95 | G190: 361.90
B191: 184 | C191: Pesetacoin (PTC) | D191: 7060.86 | E191: 84730.32 | F191: 388347.30 | G191: 776694.60
B192: 185 | C192: Philippine Peso (PHP) | D192: 46.37 | E192: 556.44 | F192: 2550.35 | G192: 5100.70
B193: 186 | C193: Philosopher Stones (PHS) | D193: 927.84 | E193: 11134.08 | F193: 51031.20 | G193: 102062.40
B194: 187 | C194: Phoenixcoin (PXC) | D194: 7060.86 | E194: 84730.32 | F194: 388347.30 | G194: 776694.60
B195: 188 | C195: Polish Zloty (PLN) | D195: 3.89 | E195: 46.68 | F195: 213.95 | G195: 427.90
B196: 189 | C196: PotCoin (POT) | D196: 1396.73 | E196: 16760.76 | F196: 76820.15 | G196: 153640.30
B197: 190 | C197: Pound Sterling (GBP) | D197: 0.68 | E197: 8.16 | F197: 37.40 | G197: 74.80
B198: 191 | C198: Primecoin (XPM) | D198: 12.94 | E198: 155.28 | F198: 711.70 | G198: 1423.40
B199: 192 | C199: ProtoShares (PTS) | D199: 7132.18 | E199: 85586.16 | F199: 392269.90 | G199: 784539.80
B200: 193 | C200: Qatari Riyal (QAR) | D200: 3.64 | E200: 43.68 | F200: 200.20 | G200: 400.40
B201: 194 | C201: Qora (QRA) | D201: 17183.76 | E201: 206205.12 | F201: 945106.80 | G201: 1890213.60
B202: =SUM(B201+1) -> 195 | C202: QuarkCoin (QRK) | D202: 234.83 | E202: =SUM(D202*12) -> 2817.96 | F202: =SUM(D202*55) -> 12915.65 | G202: =SUM(D202*110) -> 25831.30
B203: 196 | C203: ReddCoin (RDD) | D203: 24574.56 | E203: 294894.72 | F203: 1351600.80 | G203: 2703201.60
... 64 more rows

Sheet Sheet2

Sheet Sheet3
